{"text_format":"3","workbook":"xlsx","n_sheets":2,"sheets":["התחלה","כלי תכנון של תקציב לחגים"],"not_rendered":{"defined_names":1},"read":"whole","date_system":"1900"}

{"sheet":"התחלה","index":0,"n_rows":7,"n_cols":2,"rows_kept":7}
[null,"אודות תבנית זו"]
[null,"עקוב אחר ההוצאות שלך בעזרת כלי תכנון זה של תקציב לחגים."]
[null,"הזן הוצאות תקציב והוצאות בפועל עבור הפריטים השונים בטבלאות."]
[null,"השדות 'תקציב לחגים', 'הוצאות בפועל' ו'הפרש' מחושבים באופן אוטומטי."]
[null,"הערה: "]
[null,"הוראות נוספות סופקו בעמודה A בגליון העבודה 'כלי תכנון של תקציב לחגים'. טקסט זה הוסתר במכוון. כדי להסיר את הטקסט, בחר את עמודה A ולאחר מכן בחר DELETE. כדי לבטל את הסתרת הטקסט, בחר את עמודה A ולאחר מכן שנה את צבע הגופן."]
[null,"לקבלת מידע נוסף על הטבלאות, הקש SHIFT ולאחר מכן F10 בתוך טבלה, בחר את האפשרות 'טבלה' ולאחר מכן בחר 'טקסט חלופי'."]

{"sheet":"כלי תכנון של תקציב לחגים","index":1,"n_rows":32,"n_cols":12,"rows_kept":32,"merged":[[1,1,5,4],[2,8,2,9],[3,8,3,9],[4,8,4,9],[6,1,6,4],[6,8,6,11],[15,1,15,4],[15,8,15,11],[25,1,25,4],[25,8,25,11]]}
["הזן את הוצאות התקציב ואת ההוצאות בפועל עבור כל קטגוריה בטבלאות המתאימות בגליון עבודה זה. הוראות שימוש בגליון עבודה זה מופיעות בתאים שבעמודה זו. הקש על החץ למטה כדי להתחיל. "]
["הכותרת של גליון עבודה זה מופיעה בתא משמאל.","כלי תכנון של  \nתקציב לחגים"]
["התקציב לחגים מחושב באופן אוטומטי בתא K3.",{"$nulls":7},"תקציב לחגים",null,{"$f":"SUM(מתנות[תקציב],אריזה[תקציב],(נסיעות[תקציב],(ארוחות[תקציב],(בידור[תקציב],שונות[תקציב]))))","v":{"v":750,"d":"₪ 750.00"}}]
["ההוצאות בפועל מחושבות באופן אוטומטי בתא K4.",{"$nulls":7},"הוצאות בפועל",null,{"$f":"SUM((מתנות[בפועל],(אריזה[בפועל],(נסיעות[בפועל],(ארוחות[בפועל],(בידור[בפועל],(שונות[בפועל])))))))","v":{"v":820,"d":"₪ 820.00"}}]
["ההפרש מחושב באופן אוטומטי בתא K5. ההוראה הבאה מופיעה בתא A7.",{"$nulls":7},"הפרש (חורג מהתקציב/במסגרת התקציב)",null,{"$f":"SUM(K3-K4)","v":{"v":-70,"d":"₪ -70.00"}}]
[]
["התווית 'מתנות' מופיעה בתא משמאל, והתווית 'ארוחות חג' מופיעה בתא I7.","מתנות",{"$nulls":6},"ארוחות חג"]
["הזן את ההוצאות על מתנות בטבלה שמתחילה בתא משמאל ואת ההוצאות על ארוחות בטבלה שמתחילה בתא I8. ההוראה הבאה מופיעה בתא A16.","פריט","תקציב","בפועל","הפרש",{"$nulls":3},"פריט","תקציב","בפועל","הפרש"]
[null,"בני משפחה",{"v":500,"d":"₪ 500.00"},{"v":495,"d":"₪ 495.00"},{"$f":"מתנות[[#This Row],[תקציב]]-מתנות[[#This Row],[בפועל]]","v":{"v":5,"d":"₪ 5.00"}},{"$nulls":3},"מצרכים",null,null,{"$f":"ארוחות[[#This Row],[תקציב]]-ארוחות[[#This Row],[בפועל]]","v":{"v":0,"d":"₪ 0.00"}}]
[null,"חברים",{"v":250,"d":"₪ 250.00"},{"v":325,"d":"₪ 325.00"},{"$f":"מתנות[[#This Row],[תקציב]]-מתנות[[#This Row],[בפועל]]","v":{"v":-75,"d":"-₪ 75.00"}},{"$nulls":3},"משקאות חריפים",null,null,{"$f":"ארוחות[[#This Row],[תקציב]]-ארוחות[[#This Row],[בפועל]]","v":{"v":0,"d":"₪ 0.00"}}]
[null,"עמיתים",null,null,{"$f":"מתנות[[#This Row],[תקציב]]-מתנות[[#This Row],[בפועל]]","v":{"v":0,"d":"₪ 0.00"}},{"$nulls":3},"קישוטים",null,null,{"$f":"ארוחות[[#This Row],[תקציב]]-ארוחות[[#This Row],[בפועל]]","v":{"v":0,"d":"₪ 0.00"}}]
[null,"מורים, גננות, שמרטפים וכן הלאה",null,null,{"$f":"מתנות[[#This Row],[תקציב]]-מתנות[[#This Row],[בפועל]]","v":{"v":0,"d":"₪ 0.00"}},{"$nulls":3},"אחר (הקש Tab בעמודה האחרונה של שורה זו כדי להוסיף שורה)",null,null,{"$f":"ארוחות[[#This Row],[תקציב]]-ארוחות[[#This Row],[בפועל]]","v":{"v":0,"d":"₪ 0.00"}}]
[null,"תרומות לצדקה",null,null,{"$f":"מתנות[[#This Row],[תקציב]]-מתנות[[#This Row],[בפועל]]","v":{"v":0,"d":"₪ 0.00"}},{"$nulls":3},"סך הכל",{"$f":"SUBTOTAL(109,ארוחות[תקציב])","v":{"v":0,"d":"₪ 0.00"}},{"$f":"SUBTOTAL(109,ארוחות[בפועל])","v":{"v":0,"d":"₪ 0.00"}},{"$f":"SUBTOTAL(109,ארוחות[הפרש])","v":{"v":0,"d":"₪ 0.00"}}]
[null,"אחר (הקש Tab בעמודה האחרונה של שורה זו כדי להוסיף שורה)",null,null,{"$f":"מתנות[[#This Row],[תקציב]]-מתנות[[#This Row],[בפועל]]","v":{"v":0,"d":"₪ 0.00"}}]
[null,"סך הכל",{"$f":"SUBTOTAL(109,מתנות[תקציב])","v":{"v":750,"d":"₪ 750.00"}},{"$f":"SUBTOTAL(109,מתנות[בפועל])","v":{"v":820,"d":"₪ 820.00"}},{"$f":"SUBTOTAL(109,מתנות[הפרש])","v":{"v":-70,"d":"-₪ 70.00"}}]
["התווית 'אריזה' מופיעה בתא משמאל, והתווית 'בידור' מופיעה בתא I16.","אריזה",{"$nulls":6},"בידור"]
["הזן את ההוצאות על אריזה בטבלה שמתחילה בתא משמאל ואת ההוצאות על בידור בטבלה שמתחילה בתא I17. ההוראה הבאה מופיעה בתא A26.","פריט","תקציב","בפועל","הפרש",{"$nulls":3},"פריט","תקציב","בפועל","הפרש"]
[null,"עטיפת מתנות",null,null,{"$f":"אריזה[[#This Row],[תקציב]]-אריזה[[#This Row],[בפועל]]","v":{"v":0,"d":"₪ 0.00"}},{"$nulls":3},"עובדים באירוע (ברמנים, חברת קייטרינג, חברת ניקיון וכן הלאה)",null,null,{"$f":"בידור[[#This Row],[תקציב]]-בידור[[#This Row],[בפועל]]","v":{"v":0,"d":"₪ 0.00"}}]
[null,"תגיות",null,null,{"$f":"אריזה[[#This Row],[תקציב]]-אריזה[[#This Row],[בפועל]]","v":{"v":0,"d":"₪ 0.00"}},{"$nulls":3},"קישוטים",null,null,{"$f":"בידור[[#This Row],[תקציב]]-בידור[[#This Row],[בפועל]]","v":{"v":0,"d":"₪ 0.00"}}]
[null,"ציוד (סרטים, נייר דבק וכן הלאה)",null,null,{"$f":"אריזה[[#This Row],[תקציב]]-אריזה[[#This Row],[בפועל]]","v":{"v":0,"d":"₪ 0.00"}},{"$nulls":3},"מזון ומשקאות",null,null,{"$f":"בידור[[#This Row],[תקציב]]-בידור[[#This Row],[בפועל]]","v":{"v":0,"d":"₪ 0.00"}}]
[null,"קופסאות",null,null,{"$f":"אריזה[[#This Row],[תקציב]]-אריזה[[#This Row],[בפועל]]","v":{"v":0,"d":"₪ 0.00"}},{"$nulls":3},"בגדים",null,null,{"$f":"בידור[[#This Row],[תקציב]]-בידור[[#This Row],[בפועל]]","v":{"v":0,"d":"₪ 0.00"}}]
[null,"דמי דואר",null,null,{"$f":"אריזה[[#This Row],[תקציב]]-אריזה[[#This Row],[בפועל]]","v":{"v":0,"d":"₪ 0.00"}},{"$nulls":3},"כרטיסים",null,null,{"$f":"בידור[[#This Row],[תקציב]]-בידור[[#This Row],[בפועל]]","v":{"v":0,"d":"₪ 0.00"}}]
[null,"אחר (הקש Tab בעמודה האחרונה של שורה זו כדי להוסיף שורה)",null,null,{"$f":"אריזה[[#This Row],[תקציב]]-אריזה[[#This Row],[בפועל]]","v":{"v":0,"d":"₪ 0.00"}},{"$nulls":3},"ארוחות מחוץ לבית",null,null,{"$f":"בידור[[#This Row],[תקציב]]-בידור[[#This Row],[בפועל]]","v":{"v":0,"d":"₪ 0.00"}}]
[null,"סך הכל",{"$f":"SUBTOTAL(109,אריזה[תקציב])","v":{"v":0,"d":"₪ 0.00"}},{"$f":"SUBTOTAL(109,אריזה[בפועל])","v":{"v":0,"d":"₪ 0.00"}},{"$f":"SUBTOTAL(109,אריזה[הפרש])","v":{"v":0,"d":"₪ 0.00"}},{"$nulls":3},"אחר (הקש Tab בעמודה האחרונה של שורה זו כדי להוסיף שורה)",null,null,{"$f":"בידור[[#This Row],[תקציב]]-בידור[[#This Row],[בפועל]]","v":{"v":0,"d":"₪ 0.00"}}]
[{"$nulls":8},"סך הכל",{"$f":"SUBTOTAL(109,בידור[תקציב])","v":{"v":0,"d":"₪ 0.00"}},{"$f":"SUBTOTAL(109,בידור[בפועל])","v":{"v":0,"d":"₪ 0.00"}},{"$f":"SUBTOTAL(109,בידור[הפרש])","v":{"v":0,"d":"₪ 0.00"}}]
["התווית 'נסיעות' מופיעה בתא משמאל, והתווית 'שונות' מופיעה בתא I26.","נסיעות",{"$nulls":6},"שונות"]
["הזן את ההוצאות על נסיעות בטבלה שמתחילה בתא משמאל ואת ההוצאות על שונות בטבלה שמתחילה בתא I27.","פריט","תקציב","בפועל","הפרש",{"$nulls":3},"פריט","תקציב","בפועל","הפרש"]
[null,"טיסות",null,null,{"$f":"נסיעות[[#This Row],[תקציב]]-נסיעות[[#This Row],[בפועל]]","v":{"v":0,"d":"₪ 0.00"}},{"$nulls":3},"צילומים לחג",null,null,{"$f":"שונות[[#This Row],[תקציב]]-שונות[[#This Row],[בפועל]]","v":{"v":0,"d":"₪ 0.00"}}]
[null,"לינה",null,null,{"$f":"נסיעות[[#This Row],[תקציב]]-נסיעות[[#This Row],[בפועל]]","v":{"v":0,"d":"₪ 0.00"}},{"$nulls":3},"דלק ",null,null,{"$f":"שונות[[#This Row],[תקציב]]-שונות[[#This Row],[בפועל]]","v":{"v":0,"d":"₪ 0.00"}}]
[null,"תחבורה",null,null,{"$f":"נסיעות[[#This Row],[תקציב]]-נסיעות[[#This Row],[בפועל]]","v":{"v":0,"d":"₪ 0.00"}},{"$nulls":3},"אחר (הקש Tab בעמודה האחרונה של שורה זו כדי להוסיף שורה)",null,null,{"$f":"שונות[[#This Row],[תקציב]]-שונות[[#This Row],[בפועל]]","v":{"v":0,"d":"₪ 0.00"}}]
[null,"אחר (הקש Tab בעמודה האחרונה של שורה זו כדי להוסיף שורה)",null,null,{"$f":"נסיעות[[#This Row],[תקציב]]-נסיעות[[#This Row],[בפועל]]","v":{"v":0,"d":"₪ 0.00"}},{"$nulls":3},"סך הכל",{"$f":"SUBTOTAL(109,שונות[תקציב])","v":{"v":0,"d":"₪ 0.00"}},{"$f":"SUBTOTAL(109,שונות[בפועל])","v":{"v":0,"d":"₪ 0.00"}},{"$f":"SUBTOTAL(109,שונות[הפרש])","v":{"v":0,"d":"₪ 0.00"}}]
[null,"סך הכל",{"$f":"SUBTOTAL(109,נסיעות[תקציב])","v":{"v":0,"d":"₪ 0.00"}},{"$f":"SUBTOTAL(109,נסיעות[בפועל])","v":{"v":0,"d":"₪ 0.00"}},{"$f":"SUBTOTAL(109,נסיעות[הפרש])","v":{"v":0,"d":"₪ 0.00"}}]